bitfinex/quotes_SOLUSD_20250901
["timestamp","ask_amount","ask_price","bid_price","bid_amount"]
[1756759767805,10.4351347,197.39,197.36,0.72]
[1756759768196,10.4351347,197.37,197.35,5.06713959]
[1756759768432,26.0,197.45,197.35,5.06713959]
[1756759768433,10.4351347,197.36,197.35,5.06713959]
[1756759768724,10.4351347,197.36,197.33,5.06765316]
[1756759768896,10.4351347,197.34,197.33,5.06765316]
[1756759769293,10.4351347,197.34,197.32,5.06790999]
[1756759769714,0.03,197.41,197.32,17.73768497]
[1756759769919,0.03,197.41,197.31,0.12]
[1756759769920,10.4351347,197.33,197.31,0.12]
[1756759770124,103.40586341,197.32,197.31,0.12]
[1756759770349,26.0,197.29,197.26,0.12]
[1756759770632,26.0,197.25,197.24,0.12]
[1756759770838,36.4351347,197.25,197.22,0.12]
[1756759771003,36.4351347,197.23,197.22,0.12]
[1756759771199,41.50535728,197.23,197.22,0.12]
[1756759771712,10.4351347,197.26,197.22,0.12]
[1756759771713,68.8,197.24,197.22,0.12]
[1756759771900,26.0,197.23,197.22,0.12]
[1756759772110,10.4351347,197.23,197.22,0.12]
[1756759772322,26.0,197.26,197.22,0.12]
[1756759772528,10.4351347,197.23,197.22,0.12]
[1756759773024,5.06846056,197.3,197.22,0.12]
[1756759773199,26.0,197.32,197.22,0.84]
[1756759773404,10.4351347,197.25,197.22,0.84]
[1756759773706,10.4351347,197.24,197.22,0.84]
[1756759774123,10.4351347,197.23,197.22,0.12]
[1756759774734,10.4351347,197.24,197.22,5.91047966]
[1756759774938,31.16205282,197.4,197.23,0.72]
[1756759775108,10.4351347,197.3,197.23,11.1551347]
[1756759775306,68.42,197.37,197.24,5.06996552]
[1756759775307,10.4351347,197.29,197.24,5.06996552]
[1756759775520,10.4351347,197.27,197.24,5.78996552]
[1756759775725,68.42,197.37,197.25,0.72]
[1756759776024,10.4351347,197.31,197.25,11.1551347]
[1756759776224,26.0,197.34,197.24,5.06996552]
[1756759776403,26.0,197.34,197.24,5.78996552]
[1756759776404,10.4351347,197.27,197.24,5.78996552]
[1756759776604,10.4351347,197.27,197.25,0.72]
[1756759776806,10.4351347,197.28,197.25,0.72]
[1756759777211,10.4351347,197.28,197.27,5.0691945]
[1756759777517,10.4351347,197.28,197.27,5.7891945]
[1756759777714,10.4351347,197.28,197.22,0.12]
[1756759777935,10.4351347,197.26,197.23,0.72]
[1756759778138,31.06750417,197.34,197.22,5.19025723]
[1756759778139,10.4351347,197.24,197.22,5.19025723]
[1756759778431,10.4351347,197.23,197.22,0.12]
[1756759780027,10.4351347,197.23,197.22,5.91038469]
[1756759780401,67.58,197.32,197.22,5.91038469]
[1756759780617,10.4351347,197.24,197.22,5.91038469]
[1756759781029,10.4351347,197.23,197.22,5.19038469]
[1756759781612,26.0,197.33,197.22,18.58658385]
[1756759781911,10.4351347,197.29,197.23,11.1551347]
[1756759782217,10.4351347,197.28,197.24,0.72]
[1756759782627,10.4351347,197.28,197.25,0.72]
[1756759782934,26.0,197.33,197.23,10.4351347]
[1756759783238,10.4351347,197.28,197.26,0.72]
[1756759783422,10.4351347,197.28,197.27,5.0691945]
[1756759783622,31.06718148,197.35,197.27,5.0691945]
[1756759783821,10.4351347,197.28,197.27,5.0691945]
[1756759784230,10.4351347,197.28,197.23,0.72]
[1756759784541,10.4351347,197.28,197.22,12.79619916]
[1756759784542,31.06718148,197.35,197.24,0.72]
[1756759784742,10.4351347,197.25,197.23,5.07022258]
[1756759784918,10.4351347,197.24,197.23,5.07022258]
[1756759785115,10.4351347,197.24,197.22,0.12]
[1756759785451,10.4351347,197.23,197.22,5.19042257]
[1756759785746,10.4351347,197.23,197.22,0.12]
[1756759785915,10.4351347,197.25,197.22,5.91047966]
[1756759786116,10.4351347,197.25,197.23,0.72]
[1756759786345,13.59559401,197.38,197.23,0.72]
[1756759786646,10.4351347,197.28,197.23,11.1551347]
[1756759786852,10.4351347,197.27,197.24,0.72]
[1756759787019,10.4351347,197.28,197.24,0.72]
[1756759787357,92.54,197.35,197.25,0.72]
[1756759787551,10.4351347,197.28,197.26,5.06945148]
[1756759787837,10.4351347,197.29,197.26,5.06945148]
[1756759788026,10.4351347,197.29,197.27,0.72]
[1756759788541,10.4351347,197.3,197.27,0.72]
[1756759788749,10.4351347,197.29,197.27,0.72]
[1756759788927,10.4351347,197.29,197.25,5.06966341]
[1756759789129,10.4351347,197.29,197.25,5.78966341]
[1756759789428,10.4351347,197.29,197.26,0.72]
[1756759789637,10.4351347,197.29,197.23,11.2751347]
[1756759789845,10.4351347,197.25,197.24,5.06996552]
[1756759790135,5.06611277,197.39,197.24,28.90001403]
[1756759790360,0.03,197.41,197.33,10.4351347]
[1756759790644,0.03,197.41,197.34,11.1551347]
[1756759790845,10.4351347,197.39,197.34,11.1551347]
[1756759791047,10.4351347,197.39,197.35,0.72]
[1756759791253,10.4351347,197.38,197.33,0.72]
[1756759791421,10.4351347,197.37,197.34,0.72]
[1756759791625,10.4351347,197.37,197.35,5.06713959]
[1756759792034,10.4351347,197.36,197.31,5.06816684]
[1756759792231,0.03,197.41,197.35,10.4351347]
[1756759792625,10.4651347,197.41,197.36,0.72]
[1756759792825,10.4351347,197.4,197.37,0.72]
[1756759793042,10.4351347,197.38,197.34,0.72]
[1756759793242,10.4351347,197.38,197.35,0.72]
[1756759793533,10.4351347,197.38,197.36,5.06688285]
[1756759794450,10.4351347,197.38,197.35,5.78708606]
[1756759794655,10.4351347,197.37,197.35,5.06708606]
[1756759794966,10.4351347,197.38,197.35,5.78708606]
[1756759795140,0.03,197.41,197.35,5.06708606]
[1756759795459,10.4351347,197.4,197.36,0.72]
[1756759795635,10.4351347,197.39,197.36,5.78686545]
[1756759795831,10.4351347,197.39,197.36,5.06686545]
[1756759796461,10.4351347,197.39,197.36,5.78686545]
[1756759797151,0.03,197.41,197.36,5.78686545]
[1756759797353,10.4351347,197.39,197.36,5.78686545]
[1756759798047,10.4351347,197.39,197.36,0.72]
[1756759798251,10.4351347,197.39,197.35,5.06690775]
[1756759798252,10.4351347,197.38,197.35,5.06690775]
[1756759798559,10.4351347,197.37,197.33,5.78748254]
[1756759798751,10.4351347,197.37,197.34,0.72]
[1756759799347,10.4351347,197.37,197.33,5.06748254]
[1756759799560,10.4351347,197.37,197.33,5.78748254]
[1756759799765,10.4351347,197.38,197.34,0.72]
[1756759800056,10.4351347,197.38,197.35,5.06713959]
[1756759800455,0.03,197.41,197.36,0.72]
[1756759800836,0.03,197.41,197.37,0.72]
[1756759801042,10.4651347,197.41,197.36,10.4351347]
[1756759801347,0.03,197.41,197.4,10.4351347]
[1756759801647,0.03,197.41,197.4,11.1551347]
[1756759801860,0.03,197.41,197.4,0.72]
[1756759802044,0.03,197.41,197.4,16.22099082]
[1756759802247,0.03,197.45,197.41,13.59559401]
[1756759802435,0.03,197.45,197.42,0.72]
[1756759802640,0.03,197.45,197.42,11.1551347]
[1756759802855,0.03,197.45,197.43,0.72]
[1756759803438,0.03,197.45,197.43,10.4351347]
[1756759803771,0.03,197.45,197.44,11.1551347]
[1756759804067,0.03,197.45,197.44,29.81555853]
[1756759805173,0.03,197.53,197.44,29.81555853]
[1756759805174,0.03,197.53,197.45,13.59559401]
[1756759805335,0.03,197.53,197.45,14.30559401]
[1756759805654,0.03,197.53,197.47,13.59559401]
[1756759805843,0.03,197.53,197.51,10.4351347]
[1756759806041,0.03,197.53,197.51,15.4979391]
[1756759806241,0.03,197.53,197.51,16.20814768]
[1756759806455,0.03,197.53,197.51,5.06301298]
[1756759806659,0.03,197.53,197.52,11.1451347]
[1756759806868,0.03,197.53,197.52,24.74072871]
[1756759807056,0.03,197.53,197.52,14.30559401]
[1756759807242,0.03,197.53,197.52,24.74072871]
[1756759807969,0.03,197.55,197.54,39.59559401]
[1756759808271,0.03,197.58,197.55,13.59559401]
[1756759808445,0.03,197.58,197.56,13.59559401]
[1756759808646,1e-08,197.59,197.58,13.59559401]
[1756759808867,1e-08,197.59,197.58,24.03072871]
[1756759809041,1e-08,197.59,197.58,14.30559401]
[1756759809247,1e-08,197.59,197.58,87.72072871]
[1756759809568,1e-08,197.61,197.6,13.59559401]
[1756759809748,1e-08,197.61,197.6,86.93072871]
[1756759809944,1e-08,197.61,197.6,87.64072871]
[1756759810151,1e-08,197.61,197.6,92.70145745]
[1756759810544,1e-08,197.61,197.6,19.36632275]
[1756759810851,1e-08,197.61,197.6,92.50145745]
[1756759811047,1e-08,197.61,197.6,93.00753032]
[1756759811250,1e-08,197.61,197.6,92.50145745]
[1756759811780,1e-08,197.61,197.6,92.40145745]
[1756759812080,1e-08,197.61,197.6,5.06072874]
[1756759812250,1e-08,197.61,197.6,10.4351347]
[1756759812452,1e-08,197.61,197.54,0.71]
[1756759812667,10.4351347,197.6,197.54,10.4351347]
[1756759812852,10.4351347,197.6,197.54,36.4351347]
[1756759813267,10.4351347,197.6,197.55,10.4351347]
[1756759813587,10.4351347,197.6,197.52,13.59559401]
[1756759813793,10.4351347,197.6,197.55,10.4351347]
[1756759814157,10.4351347,197.6,197.56,5.06175339]
[1756759814556,1e-08,197.61,197.57,10.4351347]
[1756759814759,1e-08,197.61,197.58,10.4351347]
[1756759815563,1e-08,197.61,197.6,10.4351347]
[1756759815962,1e-08,197.61,197.6,25.24680158]
[1756759816173,1e-08,197.61,197.6,56.30753032]
[1756759817070,1e-08,197.61,197.6,30.30753032]
[1756759818267,0.2,197.73,197.64,39.59559401]
[1756759818585,0.2,197.73,197.7,10.4351347]
[1756759818786,0.2,197.73,197.66,13.59559401]
[1756759818965,0.2,197.73,197.68,10.4351347]
[1756759819169,10.6351347,197.73,197.68,10.4351347]
[1756759819474,0.65,197.72,197.68,10.4351347]
[1756759819789,10.4351347,197.69,197.6,5.06072874]
[1756759819979,10.4351347,197.67,197.62,10.4351347]
[1756759820169,10.4351347,197.68,197.63,15.49509523]
[1756759820491,11.0851347,197.68,197.63,15.49509523]
[1756759820695,10.4351347,197.65,197.54,0.71]
[1756759820994,10.4351347,197.58,197.49,17.72241632]
[1756759821300,0.65,197.6,197.54,10.4351347]
[1756759821465,0.65,197.65,197.56,10.4351347]
[1756759821662,10.4351347,197.61,197.56,10.4351347]
[1756759821885,10.4351347,197.59,197.54,10.4351347]
[1756759822067,10.4351347,197.59,197.53,13.59559401]
[1756759822266,10.4351347,197.58,197.5,13.59559401]
[1756759822572,10.4351347,197.58,197.53,10.4351347]
[1756759822888,10.4351347,197.58,197.51,26.0]
[1756759823094,10.4351347,197.58,197.52,10.4351347]
[1756759823277,10.4351347,197.57,197.52,13.59559401]
[1756759823792,10.4351347,197.58,197.52,24.03072871]
[1756759823985,0.65,197.6,197.49,0.71]
[1756759823986,10.4351347,197.56,197.49,0.71]
[1756759824186,0.65,197.57,197.5,5.06329113]
[1756759824392,10.4351347,197.54,197.5,5.06329113]
[1756759824891,10.4351347,197.54,197.49,5.06350052]
[1756759825080,0.65,197.57,197.49,15.49863522]
[1756759825397,11.0851347,197.57,197.51,10.4351347]
[1756759825595,10.4351347,197.56,197.5,10.4351347]
[1756759825779,10.4351347,197.55,197.5,10.4351347]
[1756759825969,10.4351347,197.55,197.49,5.06350052]
[1756759825970,10.4351347,197.53,197.48,5.06377498]
[1756759826171,10.4351347,197.52,197.48,5.06377498]
[1756759826382,10.4351347,197.52,197.46,13.59559401]
[1756759826597,10.4351347,197.5,197.47,5.06399758]
[1756759826803,0.65,197.49,197.43,5.06508635]
[1756759826973,10.4351347,197.48,197.43,5.06508635]
[1756759827179,26.0,197.55,197.5,0.12]
[1756759827180,0.65,197.52,197.5,0.12]
[1756759827379,10.4351347,197.51,197.5,0.12]
[1756759827705,0.65,197.51,197.5,0.12]
[1756759827879,11.0851347,197.51,197.5,0.12]
[1756759828192,0.65,197.51,197.5,0.12]
[1756759828393,11.0851347,197.51,197.5,0.12]
[1756759828579,0.65,197.54,197.5,0.12]
[1756759828779,0.65,197.53,197.5,0.12]
[1756759828980,0.65,197.56,197.5,0.12]
[1756759829169,10.4351347,197.53,197.5,0.12]
[1756759829901,10.4351347,197.55,197.5,16.32842555]
[1756759830094,10.4351347,197.55,197.5,5.89329085]
[1756759830301,10.4351347,197.54,197.5,5.18329085]
[1756759830475,5.09047936,197.61,197.5,5.18329085]
[1756759830476,0.03,197.61,197.51,0.71]
[1756759830680,10.4351347,197.58,197.52,10.4351347]
[1756759831285,0.03,197.61,197.5,17.84151869]
[1756759831286,0.03,197.61,197.53,10.4351347]
[1756759831488,0.03,197.61,197.54,10.4351347]
[1756759831778,10.4351347,197.59,197.54,10.4351347]
[1756759832173,0.03,197.61,197.57,10.4351347]
[1756759832374,0.03,197.61,197.56,13.59559401]
[1756759832676,0.03,197.61,197.59,10.4351347]
[1756759832877,0.03,197.61,197.58,13.59559401]
[1756759833086,0.03,197.61,197.6,10.4351347]
[1756759833286,0.03,197.61,197.6,24.03072871]
[1756759833576,0.03,197.61,197.6,11.1451347]
[1756759833976,0.03,197.63,197.62,39.59559401]
[1756759834376,0.03,197.63,197.62,55.80094528]
[1756759835573,0.03,197.63,197.62,45.36581058]
[1756759835779,0.03,197.65,197.62,45.36581058]
[1756759835780,0.03,197.65,197.63,13.59559401]
[1756759835975,0.03,197.65,197.64,10.4351347]
[1756759836200,0.03,197.65,197.64,0.67]
[1756759836402,0.03,197.65,197.64,16.16483921]
[1756759836986,0.03,197.65,197.64,29.76043322]
[1756759837189,0.03,197.65,197.64,19.32529852]
[1756759837496,0.03,197.65,197.64,29.76043322]
[1756759838079,0.03,197.65,197.64,18.65529852]
[1756759838280,0.03,197.65,197.64,29.76043322]
[1756759838502,10.6351347,197.73,197.65,13.59559401]
[1756759838691,0.2,197.73,197.68,10.4351347]
[1756759838876,10.6351347,197.73,197.68,10.4351347]
[1756759839207,10.6351347,197.73,197.67,10.4351347]
[1756759839401,0.2,197.73,197.65,13.59559401]
[1756759839704,10.4351347,197.72,197.67,10.4351347]
[1756759839876,10.4351347,197.7,197.64,5.05970451]
[1756759840081,10.4351347,197.69,197.64,5.05970451]
[1756759840482,10.4351347,197.68,197.64,5.05970451]
[1756759840986,0.68,197.71,197.64,5.05970451]
[1756759841182,10.4351347,197.66,197.63,5.05994552]
[1756759841378,5.05765729,197.72,197.63,5.05994552]
[1756759841577,5.05765729,197.72,197.61,15.49560734]
[1756759841578,10.4351347,197.66,197.61,15.49560734]
[1756759841785,10.4351347,197.66,197.61,16.16560734]
[1756759842006,0.68,197.71,197.62,10.4351347]
[1756759842208,0.2,197.73,197.65,10.4351347]
[1756759842400,10.4351347,197.71,197.65,10.4351347]
[1756759842591,10.4351347,197.7,197.66,5.05919255]
[1756759842910,0.68,197.72,197.66,5.05919255]
[1756759843085,10.4351347,197.71,197.66,15.49432725]
[1756759843286,10.6351347,197.73,197.66,5.05919255]
[1756759843493,10.4351347,197.71,197.66,15.49432725]
[1756759843805,10.4351347,197.7,197.66,5.05919255]
[1756759844209,10.4351347,197.71,197.66,15.49432725]
[1756759844587,0.2,197.73,197.66,15.49432725]
[1756759844793,10.4351347,197.72,197.66,16.16432725]
[1756759845300,10.4351347,197.72,197.67,11.1051347]
[1756759846000,6.88757351,197.72,197.67,7.55757351]
[1756759846209,0.2,197.73,197.69,6.88757351]
[1756759846386,0.2,197.73,197.7,6.88757351]
[1756759846797,0.2,197.73,197.71,5.0579131]
[1756759846994,0.2,197.73,197.71,12.61548661]
[1756759847199,0.2,197.73,197.72,0.67]
[1756759847809,0.2,197.73,197.72,7.55757351]
[1756759848119,0.2,197.73,197.72,21.15316752]
[1756759848810,0.2,197.73,197.72,26.21082481]
[1756759848987,0.2,197.73,197.72,19.3232513]
[1756759849516,0.2,197.73,197.72,26.21082481]
[1756759849930,0.2,197.73,197.72,5.05765729]
[1756759850299,0.2,197.73,197.72,11.9452308]
[1756759850502,0.2,197.73,197.72,5.05765729]
[1756759851520,0.2,197.78,197.72,43.66008698]
[1756759851817,0.2,197.78,197.77,20.48316752]
[1756759852222,0.2,197.78,197.77,21.15316752]
[1756759852520,0.2,197.85,197.78,13.59559401]
[1756759852729,0.2,197.85,197.78,14.26559401]
[1756759852926,0.2,197.85,197.81,11.94268713]
[1756759853220,0.2,197.85,197.81,5.05511362]
[1756759853598,0.2,197.85,197.81,11.94268713]
[1756759854023,0.2,197.85,197.81,5.05511362]
[1756759855024,11.25802,197.85,197.79,5.05586733]
[1756759855226,0.88,197.85,197.79,5.05586733]
[1756759855431,10.57802,197.85,197.79,5.05586733]
[1756759855606,0.2,197.85,197.79,5.72586733]
[1756759856239,0.2,197.85,197.8,13.59559401]
[1756759856440,0.2,197.85,197.8,14.26559401]
[1756759856617,0.2,197.85,197.81,0.67]
[1756759856818,0.2,197.85,197.8,13.59559401]
[1756759857028,0.2,197.85,197.81,5.05535614]
[1756759857232,10.37802,197.82,197.77,23.97361401]
[1756759857431,10.37802,197.81,197.76,5.0566343]
[1756759857747,10.37802,197.8,197.76,5.0566343]
[1756759858322,10.37802,197.81,197.76,5.0566343]
[1756759858544,10.37802,197.81,197.76,15.4346543]
[1756759858824,10.37802,197.79,197.74,5.05714574]
[1756759859141,10.37802,197.79,197.74,16.10516574]
[1756759859521,10.37802,197.79,197.74,5.05714574]
[1756759859728,10.37802,197.77,197.72,10.37802]
[1756759859927,10.37802,197.77,197.72,11.04802]
[1756759860121,0.2,197.85,197.71,5.0579131]
[1756759860122,10.37802,197.78,197.73,10.37802]
[1756759860327,10.37802,197.78,197.73,11.04802]
[1756759860643,0.2,197.85,197.77,10.37802]
[1756759860820,10.37802,197.83,197.77,10.37802]
[1756759861026,10.37802,197.82,197.78,5.05612296]
[1756759861225,10.37802,197.81,197.77,5.05632548]
[1756759861447,0.68,197.83,197.75,10.37802]
[1756759861651,10.37802,197.8,197.75,10.37802]
[1756759861824,10.37802,197.78,197.73,15.4354215]
[1756759862026,10.37802,197.79,197.73,16.1054215]
[1756759862226,10.37802,197.79,197.74,10.37802]
[1756759862422,5.05458956,197.84,197.72,5.05762678]
[1756759862622,10.37802,197.75,197.69,0.67]
[1756759862831,10.37802,197.74,197.69,11.04802]
[1756759863033,10.37802,197.74,197.7,5.72816894]
[1756759863338,10.37802,197.75,197.7,16.10618894]
[1756759864241,10.37802,197.74,197.7,0.67]
[1756759864656,0.03,197.77,197.73,10.37802]
[1756759865041,10.40802,197.77,197.73,5.0574015]
[1756759865357,0.03,197.77,197.71,5.05767801]
[1756759865545,10.40802,197.77,197.71,15.43569801]
[1756759865746,10.37802,197.75,197.7,11.08802]
[1756759865953,10.37802,197.74,197.69,10.37802]
[1756759866252,5.08638818,197.77,197.69,10.37802]
[1756759866253,10.37802,197.75,197.69,11.08802]
[1756759866441,0.03,197.77,197.71,10.37802]
[1756759866644,0.03,197.77,197.69,5.05830739]
[1756759866858,0.03,197.77,197.73,10.37802]
[1756759867155,10.40802,197.77,197.72,37.08802]
[1756759867357,0.03,197.77,197.73,11.08802]
[1756759867660,0.03,197.77,197.72,31.05764517]
[1756759867661,0.03,197.77,197.76,10.37802]
[1756759868258,0.03,197.77,197.76,11.08802]
[1756759868442,0.03,197.77,197.76,0.71]
[1756759868752,0.03,197.77,197.76,24.68361401]
[1756759869156,0.03,197.77,197.76,29.74024831]
[1756759870432,1e-08,197.77,197.76,29.74024831]
[1756759870631,0.03,197.81,197.79,39.59559401]
[1756759870865,0.03,197.81,197.8,13.59559401]
[1756759871152,0.2,197.85,197.84,44.65018357]
[1756759871359,0.2,197.85,197.84,55.02820357]
[1756759871656,0.2,197.85,197.84,55.73820357]
[1756759872757,10.57802,197.85,197.79,10.37802]
[1756759872938,0.2,197.85,197.79,13.59559401]
[1756759873252,10.37802,197.82,197.81,13.59559401]
[1756759873459,10.37802,197.83,197.81,13.59559401]
[1756759873638,0.2,197.85,197.81,13.59559401]
[1756759873847,10.37802,197.83,197.81,13.59559401]
[1756759874153,10.37802,197.82,197.81,13.59559401]
[1756759874333,10.37802,197.83,197.81,13.59559401]
[1756759874531,10.37802,197.84,197.81,13.59559401]
[1756759874731,10.37802,197.83,197.81,13.59559401]
[1756759875252,10.37802,197.84,197.82,5.05510059]
[1756759875450,0.2,197.85,197.82,5.05510059]
[1756759875662,10.37802,197.83,197.82,18.6506946]
[1756759875837,10.37802,197.84,197.82,5.05510059]
[1756759876038,26.0,197.83,197.82,5.05510059]
[1756759877128,26.0,197.81,197.8,5.05555911]
[1756759877338,6.87812973,197.81,197.8,5.05555911]
[1756759877558,6.87812973,197.82,197.8,5.05555911]
[1756759878135,26.0,197.81,197.8,5.05555911]
[1756759878734,0.2,197.85,197.8,17.69458843]
[1756759878934,0.2,197.85,197.8,32.00018244]
[1756759878935,26.0,197.81,197.8,32.00018244]
[1756759879158,25.0,197.81,197.8,32.00018244]
[1756759879561,25.0,197.81,197.8,31.29018244]
[1756759879945,25.0,197.81,197.8,18.65115312]
[1756759880143,25.0,197.81,197.77,0.71]
[1756759880457,6.87812973,197.78,197.74,88.59560411]
[1756759880660,6.87812973,197.81,197.77,13.59559401]
[1756759880875,6.87812973,197.84,197.79,20.47372374]
[1756759881173,0.2,197.85,197.8,0.71]
[1756759881335,26.0,197.82,197.81,5.05535614]
[1756759881965,26.0,197.82,197.81,19.36095015]
[1756759882174,26.0,197.83,197.81,18.40374651]
[1756759882476,0.2,197.85,197.82,21.18372374]
[1756759882674,0.2,197.85,197.84,13.59559401]
[1756759883134,0.2,197.85,197.84,21.18372374]
[1756759883334,0.2,197.85,197.84,26.2383133]
[1756759883968,0.2,197.85,197.84,83.4983133]
[1756759884136,26.2,197.85,197.84,18.65018357]
[1756759884631,0.2,197.85,197.84,18.65018357]
[1756759884833,26.2,197.85,197.84,18.65018357]
[1756759885265,33.77812973,197.85,197.81,13.59559401]
[1756759885467,33.77812973,197.85,197.67,36.44]
[1756759885468,26.0,197.79,197.76,18.40822006]
[1756759885650,26.0,197.79,197.78,20.47372374]
[1756759885834,26.0,197.79,197.78,13.59559401]
[1756759886460,26.0,197.8,197.78,21.18372374]
[1756759886761,26.0,197.8,197.79,14.30559401]
[1756759887073,0.9,197.85,197.79,14.30559401]
[1756759887370,26.0,197.8,197.79,19.36146134]
[1756759887571,0.2,197.85,197.8,13.59559401]
[1756759887866,26.0,197.84,197.82,13.59559401]
[1756759888071,26.0,197.84,197.82,14.30559401]
[1756759888250,0.2,197.85,197.82,14.30559401]
[1756759888646,26.0,197.84,197.82,14.30559401]
[1756759888842,0.2,197.85,197.84,13.59559401]
[1756759889172,0.03,197.87,197.84,21.18372374]
[1756759889374,0.03,197.87,197.81,57.22]
[1756759889375,0.03,197.87,197.86,13.59559401]
[1756759889663,0.03,197.87,197.86,18.64967265]
[1756759889871,7.60812973,197.87,197.7,0.12]
[1756759890168,6.87812973,197.73,197.7,0.12]
[1756759890469,20.0,197.84,197.7,0.12]
[1756759890470,0.7,197.76,197.7,0.12]
[1756759890786,26.0,197.75,197.72,5.17763536]
[1756759890956,26.0,197.75,197.72,5.88763536]
[1756759891148,0.7,197.81,197.72,5.17763536]
[1756759891477,26.0,197.83,197.75,13.59559401]
[1756759891770,26.7,197.84,197.75,13.59559401]
[1756759891950,6.87812973,197.8,197.75,13.59559401]
[1756759892645,6.87812973,197.82,197.77,13.59559401]
[1756759892852,6.87812973,197.82,197.77,14.30559401]
[1756759893069,6.87812973,197.81,197.75,20.47372374]
[1756759893367,6.87812973,197.8,197.75,13.59559401]
[1756759893572,6.87812973,197.82,197.78,13.59559401]
[1756759893813,6.87812973,197.84,197.8,13.59559401]
[1756759894097,10.3777334,197.86,197.81,0.71]
[1756759894305,0.03,197.87,197.8,23.97332741]
[1756759894478,0.03,197.87,197.83,13.59559401]
[1756759894683,0.03,197.87,197.86,10.3777334]
[1756759894979,0.03,197.87,197.85,13.59559401]
[1756759895171,0.03,197.87,197.83,26.0]
[1756759895484,0.03,197.87,197.85,5.05433409]
[1756759896076,0.03,197.92,197.86,25.15873527]
[1756759896293,0.03,197.92,197.9,13.59559401]
[1756759896468,0.03,197.92,197.88,10.3777334]
[1756759896667,10.3777334,197.91,197.87,13.59559401]
[1756759896891,10.4077334,197.92,197.87,13.59559401]
[1756759897194,10.4077334,197.92,197.86,10.3777334]
[1756759897195,0.03,197.92,197.89,13.59559401]
[1756759897381,0.03,197.92,197.89,14.27559401]
[1756759897703,10.3777334,197.91,197.87,5.05382321]
[1756759898870,0.03,197.92,197.91,39.59559401]
[1756759899075,0.03,197.92,197.91,49.97332741]
[1756759899268,0.03,197.92,197.91,50.65332741]
[1756759899465,1e-08,197.92,197.91,50.65332741]
[1756759899704,1e-08,197.92,197.91,55.70612918]
[1756759900466,1e-08,197.92,197.91,45.32839578]
[1756759900798,1e-08,197.92,197.91,55.70612918]
[1756759901332,1e-08,197.92,197.91,112.80612918]
[1756759901528,1e-08,197.92,197.91,112.12612918]
[1756759901826,1e-08,197.92,197.91,112.10612918]
[1756759901992,1e-08,197.92,197.91,23.97332741]
[1756759902196,1e-08,197.92,197.91,29.02612918]
[1756759902690,1e-08,197.92,197.91,29.70612918]
[1756759903096,1e-08,197.92,197.91,19.32839578]
[1756759903299,1e-08,197.92,197.91,29.70612918]
[1756759903690,1e-08,197.92,197.91,23.97332741]
[1756759903897,1e-08,197.92,197.91,86.10612918]
[1756759905316,1e-08,197.92,197.91,86.78612918]
[1756759906306,1e-08,197.92,197.91,29.70612918]
[1756759906512,1e-08,197.92,197.91,86.06612918]
[1756759906719,1e-08,197.92,197.91,86.74612918]
[1756759907712,1e-08,197.92,197.91,112.74612918]
[1756759907924,1e-08,197.92,197.91,102.36839578]
[1756759908429,1e-08,197.92,197.91,102.32839578]
[1756759908717,1e-08,197.92,197.91,112.70612918]
[1756759909743,1e-08,197.92,197.91,44.64839578]
[1756759909924,1e-08,197.92,197.91,112.02612918]
[1756759910816,1e-08,197.92,197.91,112.00612918]
[1756759911130,1e-08,197.92,197.91,111.98612918]
[1756759911325,1e-08,197.92,197.91,101.60839578]
[1756759911637,1e-08,197.92,197.91,85.98612918]
[1756759912600,1e-08,197.92,197.91,70.53559401]
[1756759912822,1e-08,197.92,197.91,85.96612918]
[1756759913417,1e-08,197.92,197.91,80.91332741]
[1756759913608,1e-08,197.92,197.91,85.96612918]
[1756759913810,1e-08,197.92,197.9,10.3777334]
[1756759914013,1e-08,197.92,197.91,56.92]
[1756759914913,1e-08,197.92,197.91,61.97280177]
[1756759915336,1e-08,197.92,197.9,6.87198413]